fUSD/lending_fUSD_20240412
["ID","MTS","AMOUNT","RATE_DAILY","PERIOD"]
[322289356,1712937046196,-183.13642444,0.00021059,2]
[322289357,1712937046206,-155.87619858,0.00021059,2]
[322289358,1712937046217,-183.32277762,0.0002106,2]
[322289359,1712937046226,-130342.91933088,0.0002106,3]
[322289360,1712937046255,-546715.65213362,0.0002106,3]
[322289361,1712937046324,-364.33680448,0.0002106,3]
[322289362,1712937046335,-2661.391,0.0002106,3]
[322289363,1712937046549,-185.54198541,0.00021,2]
[322289364,1712937046559,-215593.87946085,0.0002106,3]
[322289365,1712937060765,632.05073475,0.00020005,2]
[322289366,1712937104636,544.7207122,0.00016846,2]
[322289367,1712937105490,880.49190557,0.00035042,30]
[322289368,1712937122610,544.7207122,0.00016004,2]
[322289369,1712937136429,152.5,0.00020387,2]
[322289370,1712937136656,152.5,0.00020396,2]
[322289371,1712937136927,152.5,0.00020406,2]
[322289372,1712937137148,152.5,0.00020415,2]
[322289373,1712937137398,152.5,0.00020424,2]
[322289374,1712937137601,152.5,0.00020433,2]
[322289375,1712937137826,152.5,0.00020443,2]
[322289376,1712937138033,152.5,0.00020452,2]
[322289377,1712937138246,152.5,0.00020461,2]
[322289378,1712937138498,152.5,0.0002047,2]
[322289379,1712937138942,152.5,0.0002048,2]
[322289380,1712937139175,152.5,0.00020489,2]
[322289381,1712937142630,160.39584383,0.00016004,2]
[322289382,1712937146757,1448.73,0.00020387,2]
[322289383,1712937216237,551.6,0.00020346,2]
[322289384,1712937230999,250.0,0.00020346,2]
[322289385,1712937321995,294.76,0.00020328,2]
[322289386,1712937354334,256.02,0.00018394,2]
[322289387,1712937426661,155.25,0.00020176,2]
[322289388,1712937534193,165.32,0.00020118,2]
[322289389,1712937534355,165.32,0.00020268,2]
[322289390,1712937534592,165.32,0.00020418,2]
[322289391,1712937574748,1107.48,0.00019925,2]
[322289392,1712937579258,155.7,0.00019924,2]
[322289393,1712937583605,353.14913346,0.00019923,2]
[322289394,1712937591560,232.0,0.00019924,2]
[322289395,1712937626458,200.0,0.0001993,2]
[322289396,1712937634101,275.563401,0.00020427,2]
[322289397,1712937706266,7488.84870537,0.00020427,2]
[322289398,1712937708601,275.8,0.00019936,2]
[322289399,1712937711639,540.24,0.00019943,2]
[322289400,1712937722272,4255.04047766,0.00020427,2]
[322289401,1712937730475,965.48,0.00019986,2]
[322289402,1712937822357,251.18,0.0001795,2]
[322289403,1712937822628,251.18,0.00020213,2]
[322289404,1712937834029,-468.40938484,0.00020527,2]
[322289405,1712937834052,-441.53358594,0.00020528,2]
[322289406,1712937834077,-162.84379118,0.00020531,2]
[322289407,1712937834100,-165.32,0.00020568,2]
[322289408,1712937834121,-150.0,0.00020599,2]
[322289409,1712937834144,-3144.12142798,0.000206,2]
[322289410,1712937834165,-4993.8125,0.00020618,2]
[322289411,1712937834187,-150.0,0.00020648,2]
[322289412,1712937834212,-150.0,0.00020716,2]
[322289413,1712937834234,-165.32,0.00020717,2]
[322289414,1712937834256,-9626.93939457,0.00020799,2]
[322289415,1712937834276,-434.0045,0.00020799,2]
[322289416,1712937834300,-10147.69541549,0.000208,2]
[322289417,1712937915961,1553.01521667,0.0001982,2]
[322289418,1712937916179,3023.16377634,0.00019907,2]
[322289419,1712937916531,1553.01521667,0.000201,2]
[322289420,1712937916708,3023.16377634,0.00020166,2]
[322289421,1712937916874,1553.01521667,0.00020313,2]
[322289422,1712937917044,3023.16377634,0.00020431,2]
[322289423,1712938018099,165.32,0.00020015,2]
[322289428,1712938027719,155.25,0.00019878,2]
[322289429,1712938036575,1553.01521668,0.00020344,2]
[322289430,1712938037239,3023.16377634,0.00020494,2]
[322289431,1712938037638,4797.83,0.00019885,2]
[322289432,1712938061915,1000.0,0.0003,30]
[322289433,1712938083289,154.74,0.00019927,2]
[322289434,1712938083546,154.74,0.00019933,2]
[322289435,1712938083774,154.74,0.00019938,2]
[322289436,1712938083992,154.74,0.00019944,2]
[322289437,1712938084241,154.74,0.00019949,2]
[322289438,1712938084470,154.74,0.00019955,2]
[322289439,1712938084749,154.74,0.0001996,2]
[322289440,1712938085261,154.74,0.00019966,2]
[322289441,1712938086080,154.74,0.00019971,2]
[322289442,1712938086327,154.74,0.00019977,2]
[322289443,1712938086557,154.74,0.00019983,2]
[322289444,1712938086799,154.74,0.00019988,2]
[322289445,1712938087036,154.74,0.00019994,2]
[322289446,1712938087326,154.74,0.00019999,2]
[322289447,1712938087496,154.74,0.00020005,2]
[322289448,1712938087733,154.74,0.0002001,2]
[322289449,1712938087976,154.74,0.00020016,2]
[322289450,1712938088187,154.74,0.00020021,2]
[322289451,1712938088432,154.74,0.00020027,2]
[322289452,1712938098697,814.4,0.00019885,2]
[322289453,1712938147674,162.84379118,0.00020428,2]
[322289454,1712938154455,3023.16377634,0.00020346,2]
[322289455,1712938191074,1214.96,0.00019864,2]
[322289457,1712938221787,230.46,0.00019868,2]
[322289482,1712938232343,-457.08997388,0.00020519,2]
[322289483,1712938232453,-1574.7093825,0.00020519,2]
[322289484,1712938232465,-1738.66248634,0.00020519,2]
[322289485,1712938232475,-1062.42894718,0.0002052,2]
[322289486,1712938232485,-233.51339806,0.0002052,2]
[322289487,1712938232495,-353.14913346,0.00020521,2]
[322289488,1712938232504,-155.0,0.00020522,2]
[322289489,1712938232516,-780.05382611,0.00020522,2]
[322289490,1712938232526,-244.0412895,0.00020523,2]
[322289491,1712938232536,-312.9044161,0.00020523,2]
[322289492,1712938232546,-150.2463517,0.00020527,2]
[322289493,1712938232560,-1684.59202001,0.00020527,2]
[322289494,1712938232572,-976.87209743,0.00020527,2]
[322289495,1712938232607,-271.29633934,0.00020527,2]
[322289496,1712938232620,-1087.0502,0.00020527,2]
[322289497,1712938232637,-12367.57651388,0.00020527,2]
[322289498,1712938232647,-1626.0,0.00020532,2]
[322289499,1712938232660,-165.32,0.00020537,2]
[322289500,1712938232671,-275.946715,0.00020548,2]
[322289501,1712938232680,-1484.52978906,0.0002076,2]
[322289509,1712938238284,-68.48542763,0.0002076,2]
[322289510,1712938238295,-3023.16377634,0.00020786,2]
[322289511,1712938238305,-1560.45611195,0.00020798,2]
[322289512,1712938238315,-935.85800104,0.000208,2]
[322289513,1712938238554,-1791.92387593,0.000208,2]
[322289514,1712938238568,-3073.7629553,0.000208,2]
[322289515,1712938238584,-57326.37695224,0.000208,2]
[322289516,1712938238596,-389.77,0.000208,2]
[322289517,1712938238606,-499.99,0.000208,2]
[322289518,1712938238617,-185.54198541,0.000208,2]
[322289519,1712938238628,-151.01070947,0.000208,2]
[322289520,1712938238638,-1560.45611194,0.00020809,2]
[322289521,1712938238647,-695.6,0.0002081,2]
[322289522,1712938238657,-1560.45611194,0.00020821,2]
[322289523,1712938238668,-1560.45611194,0.00020832,2]
[322289524,1712938238677,-1560.45611194,0.00020843,2]
[322289525,1712938238687,-1560.45611194,0.00020855,2]
[322289526,1712938238697,-1560.45611194,0.00020866,2]
[322289527,1712938238707,-1560.45611194,0.00020877,2]
[322289528,1712938238717,-1560.45611194,0.00020889,2]
[322289529,1712938238726,-729.70117095,0.00020898,2]
[322289530,1712938238736,-66964.7762,0.00020898,2]
[322289531,1712938238746,-729.70117093,0.00020898,2]
[322289532,1712938238756,-729.70117093,0.00020899,2]
[322289533,1712938238766,-729.70117093,0.00020899,2]
[322289534,1712938238779,-4324.64565833,0.00020899,2]
[322289535,1712938238790,-729.70117093,0.00020899,2]
[322289536,1712938238800,-729.70117093,0.00020899,2]
[322289537,1712938238810,-729.70117093,0.000209,2]
[322289538,1712938238820,-1018049.02089957,0.000209,3]
[322289539,1712938238830,-515.7799,0.000209,2]
[322289540,1712938238841,-39959.6783,0.000209,2]
[322289541,1712938238851,-180.28720509,0.000209,2]
[322289542,1712938238862,-531.75279748,0.000209,2]
[322289543,1712938238873,-558.14956962,0.000209,2]
[322289544,1712938238883,-729.70117093,0.000209,2]
[322289545,1712938238893,-1560.45611194,0.000209,2]
[322289546,1712938238903,-256.65086557,0.000209,2]
[322289547,1712938238913,-802.88997968,0.000209,3]
[322289548,1712938238923,-185.54198541,0.000209,2]
[322289549,1712938238932,-2419.4969031,0.000209,2]
[322289550,1712938238942,-645.60183134,0.000209,2]
[322289551,1712938238951,-178.11287012,0.000209,2]
[322289552,1712938238961,-674.9871,0.00020958,2]
[322289553,1712938238970,-426.14410958,0.00020988,2]
[322289554,1712938238980,-318.57381182,0.00020998,2]
[322289555,1712938238990,-295.94921399,0.00020998,2]
[322289556,1712938238999,-2168.36692202,0.00020998,2]
[322289557,1712938239009,-188.80872208,0.00020998,2]
[322289558,1712938239020,-358.2133648,0.00020998,2]
[322289559,1712938239029,-407.63765975,0.00020998,2]
[322289560,1712938239038,-185.78135859,0.00020998,2]
[322289561,1712938239047,-2376.74529874,0.00020998,2]
[322289562,1712938239056,-193.70754222,0.00020998,2]
[322289563,1712938239066,-199.60579167,0.00020998,2]
[322289564,1712938239075,-261.40204284,0.00020998,2]
[322289565,1712938239085,-662.44659482,0.00020998,2]
[322289566,1712938239096,-276.99767365,0.00020998,2]
[322289567,1712938239110,-155.0,0.00020998,2]
[322289569,1712938239128,-230.11483414,0.00020998,2]
[322289572,1712938239151,-156.73583069,0.00020998,2]
[322289574,1712938239166,-4309.13332723,0.00020998,2]
[322289576,1712938239178,-2112.2163461,0.00020998,2]
[322289578,1712938239190,-265.68120969,0.00020998,2]
[322289580,1712938239202,-155.0,0.00020998,2]
[322289582,1712938239214,-239.93898839,0.00020998,2]
[322289584,1712938239226,-155.39811659,0.00020998,2]
[322289586,1712938239237,-3813.9371447,0.00020998,2]
[322289588,1712938239249,-255.91009224,0.00020998,2]
[322289590,1712938239260,-238.55703456,0.00020998,2]
[322289592,1712938239276,-848.52162213,0.00020998,2]
[322289594,1712938239286,-155.0,0.00020998,2]
[322289596,1712938239296,-350.92208942,0.00020998,2]
[322289598,1712938239307,-155.0,0.00020998,2]
[322289600,1712938239316,-155.27580194,0.00020999,2]
[322289602,1712938239326,-464.63554701,0.00020999,2]
[322289604,1712938239335,-2621.58302011,0.00020999,2]
[322289606,1712938239344,-440270.52196637,0.00020999,2]
[322289608,1712938239353,-281.08979939,0.00020999,2]
[322289610,1712938239362,-427.31832369,0.00020999,2]
[322289612,1712938239372,-500.0,0.00020999,2]
[322289615,1712938239382,-500.0,0.00020999,2]
[322289617,1712938239391,-180.37779667,0.00020999,2]
[322289619,1712938239401,-350.00000001,0.00020999,2]
[322289620,1712938239410,-239.10356647,0.00021,2]
[322289623,1712938239420,-2209.8321055,0.00021,2]
[322289625,1712938239429,-11958792.80321954,0.00021,2]
[322289627,1712938239444,-4450912.87105384,0.00021,2]
[322289629,1712938239454,-1877274.33052113,0.00021,2]
[322289631,1712938239463,-2555.0,0.00021014,2]
[322289633,1712938239473,-160010.0,0.00021014,2]
[322289635,1712938239482,-22102.0,0.00021014,2]
[322289637,1712938239491,-256.65086556,0.00021033,2]
[322289639,1712938239501,-2202.53025562,0.00021038,2]
[322289641,1712938239511,-1509.85314436,0.00021057,2]
[322289643,1712938239524,-640.46092048,0.00021057,2]
[322289645,1712938239534,-300.63553375,0.00021057,2]
[322289647,1712938239543,-704.18979387,0.00021057,2]
[322289649,1712938239553,-202.59210874,0.00021057,2]
[322289651,1712938239562,-485.70839377,0.00021057,2]
[322289653,1712938239571,-155.0,0.00021057,2]
[322289655,1712938239581,-1572.01999963,0.00021058,2]
[322289657,1712938239590,-165.32,0.00021058,2]
[322289659,1712938239600,-477616.20480032,0.00021059,2]
[322289662,1712938239612,-292851.03860472,0.0002106,4]
[322289664,1712938239622,-425.47,0.000211,2]
[322289666,1712938239631,-337.88,0.000211,2]
[322289668,1712938239641,-256.65086556,0.00021167,2]
[322289670,1712938239650,-1553.01521669,0.00021207,2]
[322289672,1712938239659,-3023.16377635,0.00021238,2]
[322289674,1712938239669,-256.65086556,0.000213,2]
[322289676,1712938239678,-275.946715,0.0002137,2]
[322289678,1712938239687,-256.65086556,0.00021433,2]
[322289680,1712938239696,-256.65086556,0.00021566,2]
[322289682,1712938239706,-4698.89694699,0.0002169,2]
[322289684,1712938239715,-4216.5386159,0.00021691,2]
[322289686,1712938239725,-287.74989474,0.00021691,2]
[322289688,1712938239734,-10392.93966207,0.00021691,2]
[322289690,1712938239744,-434.31874735,0.00021694,2]
[322289692,1712938239754,-256.65086556,0.000217,2]
[322289694,1712938239763,-20304.8584583,0.0002172,2]
[322289696,1712938239776,-60688.9939526,0.0002172,2]
[322289698,1712938239786,-8449.3716279,0.00021735,2]
[322289700,1712938239796,-256.65086556,0.00021833,2]
[322289702,1712938239805,-1504.0,0.000219,2]
[322289704,1712938239815,-502.0,0.000219,2]
[322289707,1712938239825,-250.0,0.00021918,2]
[322289709,1712938239835,-256.65086556,0.00021966,2]
[322289711,1712938239845,-172.07,0.00022076,2]
[322289713,1712938239854,-256.65086556,0.00022099,2]
[322289715,1712938239864,-275.946715,0.00022192,2]
[322289717,1712938239873,-256.65086556,0.00022233,2]
[322289719,1712938239884,-256.65086556,0.00022366,2]
[322289721,1712938239893,-814.4,0.00022371,2]
[322289722,1712938239903,-232.0,0.00022415,2]
[322289724,1712938239913,-251.18,0.00022477,2]
[322289726,1712938239923,-1214.96,0.00022604,2]
[322289727,1712938239933,-300.0,0.00023,3]
[322289728,1712938239943,-275.946715,0.00023014,2]
[322289729,1712938239952,-595.0,0.00023066,2]
[322289730,1712938239963,-275.946715,0.00023836,2]
[322289731,1712938239973,-625.0,0.0002409,2]
[322289732,1712938239983,-625.0,0.0002409,2]
[322289733,1712938239992,-807.25333504,0.000245,2]
[322289734,1712938240002,-275.946715,0.00024658,2]
[322289735,1712938240011,-251.18,0.00024741,2]
[322289736,1712938240022,-814.4,0.00024856,2]
[322289737,1712938240031,-425.47,0.000249,2]
[322289738,1712938240041,-337.88,0.000249,2]
[322289739,1712938240051,-232.0,0.00024905,2]
[322289740,1712938240061,-2604.28990565,0.00025,2]
[322289741,1712938240071,-106996.50934582,0.00025,2]
[322289742,1712938240080,-350.0,0.00025,3]
[322289749,1712938240300,-1214.96,0.00025344,2]
[322289751,1712938240310,-275.946715,0.00025479,2]
[322289753,1712938240320,-167.1,0.0002569,2]
[322289754,1712938240330,-275.946715,0.00026301,2]
[322289755,1712938240339,-57177.78440351,0.000265,2]
[322289756,1712938240348,-172.07,0.0002676,2]
[322289757,1712938240357,-562.74532621,0.00026827,2]
[322289758,1712938240367,-219.25888395,0.00027,2]
[322289759,1712938240376,-1500.0,0.00027,2]
[322289760,1712938240385,-1500.0,0.00027,2]
[322289761,1712938240395,-927.72,0.00027,2]
[322289762,1712938240403,-1500.0,0.00027,2]
[322289763,1712938240413,-400.0,0.00027,3]
[322289764,1712938240422,-749.70814015,0.00027,2]
[322289765,1712938240431,-251.18,0.00027005,2]
[322289766,1712938240441,-159.02515124,0.00027106,2]
[322289767,1712938240450,-275.946715,0.00027123,2]
[322289768,1712938240459,-814.4,0.00027342,2]
[322289769,1712938240469,-853.82148832,0.00027375,2]
[322289770,1712938240478,-305.74773443,0.00027377,2]
[322289771,1712938240487,-210.10177257,0.00027377,2]
[322289772,1712938240497,-369.42580528,0.00027377,2]
[322289773,1712938240507,-363.00732385,0.00027379,2]
[322289774,1712938240517,-206.59266165,0.00027379,2]
[322289775,1712938240528,-5189.35507559,0.00027379,2]
[322289776,1712938240538,-547666.18671008,0.0002738,2]
[322289777,1712938240547,-552886.02260742,0.0002738,2]
[322289778,1712938240556,-232.0,0.00027396,2]
[322289779,1712938240565,-156.22,0.00027397,2]
[322289780,1712938240574,-159.5,0.00027397,2]
[322289781,1712938240584,-557.27,0.00027397,2]
[322289782,1712938240594,-161.89,0.00027397,2]
[322289783,1712938240603,-230.46,0.00027815,2]
[322289784,1712938240613,-20180.30698704,0.00028,2]
[322289785,1712938240623,-302.0,0.000285,5]
[322289786,1712938240632,-6744.92204359,0.00029,2]
[322289787,1712938240642,-450.0,0.00029,3]
[322289788,1712938240651,-150.81,0.00029,2]
[322289789,1712938240661,-150.81,0.00029,2]
[322289790,1712938240671,-150.81,0.00029,2]
[322289791,1712938240681,-150.81,0.00029,2]
[322289792,1712938240690,-150.81,0.00029,2]
[322289793,1712938240699,-150.81,0.00029,2]
[322289794,1712938240709,-150.81,0.00029,2]
[322289795,1712938240718,-150.81,0.00029,2]
[322289796,1712938240727,-150.81,0.00029,2]
[322289797,1712938240737,-150.81,0.00029,2]
[322289798,1712938240746,-150.81,0.00029,2]
[322289799,1712938240756,-150.81,0.00029,2]
[322289800,1712938240765,-150.81,0.00029,2]
[322289801,1712938240778,-150.81,0.00029,2]
[322289802,1712938240787,-150.81,0.00029,2]
[322289803,1712938240797,-150.81,0.00029,2]
[322289804,1712938240807,-150.81,0.00029,2]
[322289805,1712938240816,-150.81,0.00029,2]
[322289806,1712938240826,-150.81,0.00029,2]
[322289807,1712938240835,-150.81,0.00029,2]
[322289808,1712938240845,-150.81,0.00029,2]
[322289809,1712938240854,-150.81,0.00029,2]
[322289810,1712938240864,-150.81,0.00029,2]
[322289811,1712938240873,-150.81,0.00029,2]
[322289812,1712938240882,-150.81,0.00029,2]
[322289813,1712938240892,-150.81,0.00029,2]
[322289814,1712938240902,-150.81,0.00029,2]
[322289815,1712938240911,-150.81,0.00029,2]
[322289816,1712938240921,-150.81,0.00029,2]
[322289817,1712938240930,-150.81,0.00029,2]
[322289818,1712938240939,-150.81,0.00029,2]
[322289819,1712938240949,-150.81,0.00029,2]
[322289820,1712938240959,-150.81,0.00029,2]
[322289821,1712938240969,-150.81,0.00029,2]
[322289822,1712938240978,-150.81,0.00029,2]
[322289823,1712938240988,-150.81,0.00029,2]
[322289824,1712938240998,-150.81,0.00029,2]
[322289825,1712938241007,-150.81,0.00029,2]
[322289826,1712938241017,-150.81,0.00029,2]
[322289827,1712938241028,-150.81,0.00029,2]
[322289828,1712938241038,-150.81,0.00029,2]
[322289829,1712938241047,-150.81,0.00029,2]
[322289830,1712938241056,-150.81,0.00029,2]
[322289831,1712938241066,-150.81,0.00029,2]
[322289832,1712938241075,-150.81,0.00029,2]
[322289833,1712938241084,-150.81,0.00029,2]
[322289834,1712938241094,-150.81,0.00029,2]
[322289835,1712938241104,-150.81,0.00029,2]
[322289836,1712938241113,-150.81,0.00029,2]
[322289837,1712938241123,-150.81,0.00029,2]
[322289838,1712938241133,-150.81,0.00029,2]
[322289839,1712938241142,-150.81,0.00029,2]
[322289840,1712938241151,-150.81,0.00029,2]
[322289841,1712938241161,-150.81,0.00029,2]
[322289842,1712938241171,-150.81,0.00029,2]
[322289843,1712938241180,-150.81,0.00029,2]
[322289844,1712938241191,-150.81,0.00029,2]
[322289845,1712938241201,-150.81,0.00029,2]
[322289846,1712938241212,-150.81,0.00029,2]
[322289847,1712938241222,-150.81,0.00029,2]
[322289848,1712938241231,-150.81,0.00029,2]
[322289849,1712938241242,-150.81,0.00029,2]
[322289850,1712938241251,-150.81,0.00029,2]
[322289851,1712938241261,-150.81,0.00029,2]
[322289852,1712938241273,-150.81,0.00029,2]
[322289853,1712938241285,-150.81,0.00029,2]
[322289854,1712938241295,-150.81,0.00029,2]
[322289855,1712938241304,-150.81,0.00029,2]
[322289856,1712938241314,-150.81,0.00029,2]
[322289857,1712938241323,-150.81,0.00029,2]
[322289858,1712938241333,-425.47,0.000291,2]
[322289859,1712938241342,-337.88,0.000291,2]
[322289860,1712938241352,-251.18,0.00029269,2]
[322289861,1712938241361,-443.47481927,0.000295,3]
[322289862,1712938241370,-814.4,0.00029828,2]
[322289863,1712938241379,-232.0,0.00029887,2]
[322289864,1712938241389,-8040.87582935,0.0002999,2]
[322289865,1712938241398,-406.9100857,0.0003,4]
[322289866,1712938241408,-225.31876821,0.0003,4]
[322289867,1712938241417,-681.97821885,0.0003,4]
[322289868,1712938241427,-6939.13491161,0.0003,2]
[322289869,1712938241436,-3475.14497539,0.0003,3]
[322289870,1712938241446,-4116.16069357,0.0003,4]
[322289871,1712938241456,-662.0,0.00030082,2]
[322289872,1712938241466,-550.0,0.00030082,2]
[322289873,1712938241475,-5000.0,0.000301,4]
[322289874,1712938241484,-180.0,0.00030258,2]
[322289875,1712938241494,-491.92815397,0.00031,4]
[322289876,1712938241504,-500.0,0.00031,3]
[322289877,1712938241514,-524.0,0.00031452,2]
[322289878,1712938241525,-551.0,0.00031452,2]
[322289879,1712938241535,-251.18,0.00031533,2]
[322289880,1712938241544,-1008.89605917,0.00031948,2]
[322289881,1712938241554,-1073.01826221,0.00031948,2]
[322289882,1712938241564,-1001.29287374,0.00032,2]
[322289883,1712938241574,-9290.84251067,0.0003211,2]
[322289884,1712938241583,-1028.86332384,0.00032219,5]
[322289885,1712938241592,-1078.48103889,0.00032219,5]
[322289886,1712938241602,-425.47,0.000323,2]
[322289887,1712938241611,-337.88,0.000323,2]
[322289888,1712938241621,-441.70411113,0.000326,20]
[322289889,1712938241630,-5318.89,0.00032603,2]
[322289890,1712938241640,-5753.9,0.00032603,2]
[322289891,1712938241650,-524.0,0.00032821,2]
[322289892,1712938241660,-171.29,0.00032831,2]
[322289893,1712938241669,-150.0,0.00032877,2]
[322289894,1712938241678,-150.0,0.00032877,30]
[322289895,1712938241688,-161.78429449,0.00032877,30]
[322289896,1712938241698,-550.0,0.00033,3]
[322289897,1712938241707,-557.27,0.00033165,2]
[322289898,1712938241717,-152.49,0.000335,2]
[322289899,1712938241726,-152.49,0.000335,2]
[322289900,1712938241736,-152.49,0.000335,2]
[322289901,1712938241745,-152.49,0.000335,2]
[322289902,1712938241754,-152.49,0.000335,2]
[322289903,1712938241764,-152.49,0.000335,2]
[322289904,1712938241776,-152.49,0.000335,2]
[322289905,1712938241785,-152.49,0.000335,2]
[322289906,1712938241795,-152.49,0.000335,2]
[322289907,1712938241805,-152.49,0.000335,2]
[322289908,1712938241814,-152.49,0.000335,2]
[322289909,1712938241824,-152.49,0.000335,2]
[322289910,1712938241833,-23800.0,0.0003362,2]
[322289911,1712938241843,-150.0,0.00033742,2]
[322289912,1712938241852,-251.18,0.00033797,2]
[322289913,1712938241862,-156.22,0.00033844,2]
[322289914,1712938241871,-430.710679,0.000341,2]
[322289915,1712938241880,-524.0,0.00034191,2]
[322289916,1712938241890,-1000.0,0.00034247,2]
[322289917,1712938241899,-1260.0,0.00034335,2]
[322289918,1712938241908,-539.0,0.00034335,2]
[322289919,1712938241917,-286.448,0.00034335,2]
[322289920,1712938241927,-1944.0,0.00034335,2]
[322289921,1712938241936,-607.0,0.00034335,2]
[322289922,1712938241946,-439.387,0.00034335,2]
[322289923,1712938241955,-806.0,0.00034335,2]
[322289924,1712938241965,-152.649,0.00034335,2]
[322289925,1712938241975,-3041.0,0.00034335,2]
[322289926,1712938241984,-1471.0,0.00034335,2]
[322289927,1712938241993,-1140.0,0.00034335,2]
[322289928,1712938242003,-398.0,0.00034335,2]
[322289929,1712938242012,-2438.0,0.00034335,2]
[322289930,1712938242023,-286.039,0.00034335,2]
[322289931,1712938242033,-1642.848,0.00034335,2]
[322289932,1712938242043,-354.0,0.00034335,2]
[322289933,1712938242052,-453.423,0.00034335,2]
[322289934,1712938242061,-214.0,0.00034335,2]
[322289935,1712938242070,-5707.0,0.00034372,2]
[322289936,1712938242080,-37595.0,0.00034372,2]
[322289937,1712938242089,-4793.0,0.00034372,2]
[322289938,1712938242098,-1314.0,0.00034372,2]
[322289939,1712938242107,-2461.0,0.00034372,2]
[322289940,1712938242117,-10000.0,0.00034448,2]
[322289941,1712938242127,-150.0,0.00034548,10]
[322289942,1712938242137,-1185.19940165,0.00034582,5]
[322289943,1712938242146,-185.40358904,0.00034595,4]
[322289944,1712938242156,-10656.1891899,0.00034596,4]
[322289945,1712938242165,-150.0,0.00034607,2]
[322289946,1712938242175,-171239.88276407,0.000347,2]
[322289947,1712938242185,-4320.0,0.000349,2]
[322289948,1712938242198,-151.01070947,0.000349,2]
[322289949,1712938242208,-7214.9502911,0.00034976,2]
[322289950,1712938242218,-5980.5289544,0.00034976,2]
[322289951,1712938242227,-17338.3951965,0.00034976,2]
[322289952,1712938242249,-14371.9319346,0.00034976,2]
[322289953,1712938242260,-74824.1520378,0.00034976,2]
[322289954,1712938242273,-88959.3101229,0.00034976,2]
[322289955,1712938242282,-3081.3525634,0.0003498,2]
[322289956,1712938242291,-175.73626305,0.00034984,30]
[322289957,1712938242300,-396976.53607398,0.00034985,3]
[322289958,1712938242310,-500000.01955922,0.0003499,5]
[322289959,1712938242319,-5493242.40599519,0.00035,5]
[322289960,1712938242588,-1791978.44452602,0.00035,5]
[322289961,1712938242600,-1368.30702283,0.00035,5]
[322289962,1712938242612,-574.3092933,0.00035,5]
[322289963,1712938242624,-258.25508988,0.00035,5]
[322289964,1712938242636,-1959.26359,0.00035,5]
[322289965,1712938242648,-1162.64491458,0.00035,5]
[322289966,1712938242659,-500.0,0.00035,5]
[322289967,1712938242766,-770484.0495682,0.00035,5]
[322289968,1712938242780,-9507.44880094,0.00035,7]
[322289969,1712938242790,-3620.98643826,0.00035,30]
[322289970,1712938242800,-151.0,0.00035,7]
[322289971,1712938242809,-151.971687,0.00035,7]
[322289972,1712938242819,-151.0,0.00035,7]
[322289973,1712938242829,-151.0,0.00035,7]
[322289974,1712938242839,-151.0,0.00035,7]
[322289975,1712938242849,-281.653262,0.00035,7]
[322289976,1712938242859,-151.0,0.00035,7]
[322289977,1712938242869,-176.772079,0.00035,7]
[322289978,1712938242878,-153.55449,0.00035,7]
[322289979,1712938242888,-151.0,0.00035,7]
[322289980,1712938242898,-153.55449,0.00035,7]